[Event "Late-Titled-Tuesday-Blitz-December-26-2023"]
[Site "Chess.com"]
[Date "2023.12.26"]
[Round "8"]
[White "morte-negra"]
[Black "frequentblunders"]
[Result "0-1"]
[WhiteElo "1993"]
[BlackElo "2111"]
[TimeControl "180+1"]
[EndTime "15:27:41 PST"]
[Termination "frequentblunders won on time"]

1. e4 {[%clk 0:03:00.9]} 1... e6 {[%clk 0:02:59.2]} 2. d4 {[%clk 0:03:00.1]}
2... c5 {[%clk 0:02:56.7]} 3. Nf3 {[%clk 0:02:58.1]} 3... cxd4 {[%clk
0:02:56.8]} 4. Nxd4 {[%clk 0:02:58.1]} 4... Nc6 {[%clk 0:02:57.4]} 5. Nc3 {[%clk
0:02:56.7]} 5... Nf6 {[%clk 0:02:57.1]} 6. Be3 {[%clk 0:02:56.6]} 6... Bb4
{[%clk 0:02:57.7]} 7. Nxc6 {[%clk 0:02:51.7]} 7... bxc6 {[%clk 0:02:57.7]} 8.
Bd3 {[%clk 0:02:48.9]} 8... d5 {[%clk 0:02:54.1]} 9. a3 {[%clk 0:02:40.5]} 9...
Ba5 {[%clk 0:02:33.1]} 10. b4 {[%clk 0:02:36.4]} 10... d4 {[%clk 0:02:28.3]} 11.
bxa5 {[%clk 0:02:31.4]} 11... dxe3 {[%clk 0:02:28.1]} 12. O-O {[%clk 0:02:20.6]}
12... exf2+ {[%clk 0:02:23.5]} 13. Rxf2 {[%clk 0:02:19.6]} 13... Qxa5 {[%clk
0:02:22.4]} 14. Ne2 {[%clk 0:02:05.5]} 14... O-O {[%clk 0:02:11.4]} 15. Nf4
{[%clk 0:02:02]} 15... Qe5 {[%clk 0:02:03.4]} 16. Rb1 {[%clk 0:01:49.5]} 16...
Nxe4 {[%clk 0:02:00.1]} 17. Qe2 {[%clk 0:01:25.6]} 17... f5 {[%clk 0:01:54.4]}
18. Nh5 {[%clk 0:01:06.3]} 18... Bd7 {[%clk 0:01:09.6]} 19. Ng3 {[%clk
0:01:05.3]} 19... Rab8 {[%clk 0:00:49.4]} 20. Re1 {[%clk 0:00:59.5]} 20... Qc5
{[%clk 0:00:35.5]} 21. Nxe4 {[%clk 0:00:48.3]} 21... fxe4 {[%clk 0:00:33.2]} 22.
Bxe4 {[%clk 0:00:48.8]} 22... Qxa3 {[%clk 0:00:24.8]} 23. Qh5 {[%clk 0:00:33.2]}
23... g6 {[%clk 0:00:12.1]} 24. Bxg6 {[%clk 0:00:31.2]} 24... hxg6 {[%clk
0:00:13]} 25. Qxg6+ {[%clk 0:00:30.5]} 25... Kh8 {[%clk 0:00:13.6]} 26. Qh6+
{[%clk 0:00:20.3]} 26... Kg8 {[%clk 0:00:14.5]} 27. Qg6+ {[%clk 0:00:16.8]}
27... Kh8 {[%clk 0:00:15.4]} 28. Rf7 {[%clk 0:00:15.1]} 28... Rxf7 {[%clk
0:00:09.1]} 29. Qxf7 {[%clk 0:00:15.2]} 29... Qd6 {[%clk 0:00:05.9]} 30. Qh5+
{[%clk 0:00:13.9]} 30... Kg8 {[%clk 0:00:06]} 31. Qg6+ {[%clk 0:00:14.1]} 31...
Kf8 {[%clk 0:00:06.1]} 32. Rf1+ {[%clk 0:00:13.4]} 32... Ke7 {[%clk 0:00:06.3]}
33. Rf7+ {[%clk 0:00:12.3]} 33... Kd8 {[%clk 0:00:06.9]} 34. Qg8+ {[%clk
0:00:10.6]} 34... Kc7 {[%clk 0:00:07.4]} 35. Qg4 {[%clk 0:00:04.9]} 35... Qc5+
{[%clk 0:00:07]} 36. Kf1 {[%clk 0:00:03.6]} 36... Rb1+ {[%clk 0:00:07.4]} 37.
Ke2 {[%clk 0:00:03.6]} 37... Qxc2+ {[%clk 0:00:07.9]} 38. Ke3 {[%clk 0:00:03.5]}
38... Rb3+ {[%clk 0:00:08.5]} 39. Kf4 {[%clk 0:00:02.3]} 39... Rb4+ {[%clk
0:00:09.1]} 40. Kg5 {[%clk 0:00:02.7]} 40... Rxg4+ {[%clk 0:00:09.7]} 41. Kxg4
{[%clk 0:00:03]} 41... Qxg2+ {[%clk 0:00:10.3]} 0-1

[Event "Late-Titled-Tuesday-Blitz-December-26-2023"]
[Site "Chess.com"]
[Date "2023.12.26"]
[Round "8"]
[White "German_Bazeev"]
[Black "grandemestregringo"]
[Result "1-0"]
[WhiteElo "2847"]
[BlackElo "2666"]
[TimeControl "180+1"]
[EndTime "15:27:43 PST"]
[Termination "German_Bazeev won by resignation"]

1. d4 {[%clk 0:03:00.9]} 1... f5 {[%clk 0:03:00.1]} 2. Bg5 {[%clk 0:03:00.5]}
2... g6 {[%clk 0:03:00.1]} 3. h4 {[%clk 0:02:58.7]} 3... Bg7 {[%clk 0:02:57]} 4.
h5 {[%clk 0:02:58.8]} 4... h6 {[%clk 0:02:56.9]} 5. Bc1 {[%clk 0:02:52.4]} 5...
g5 {[%clk 0:02:56.5]} 6. Nc3 {[%clk 0:02:50.6]} 6... Nc6 {[%clk 0:02:46.3]} 7.
d5 {[%clk 0:02:50.2]} 7... Ne5 {[%clk 0:02:46.3]} 8. Nf3 {[%clk 0:02:50.8]} 8...
e6 {[%clk 0:02:36.5]} 9. g3 {[%clk 0:02:07.4]} 9... Ne7 {[%clk 0:02:34.5]} 10.
dxe6 {[%clk 0:02:05.6]} 10... dxe6 {[%clk 0:02:30.5]} 11. Qxd8+ {[%clk
0:02:06.5]} 11... Kxd8 {[%clk 0:02:31.1]} 12. Bg2 {[%clk 0:02:03.2]} 12... Ng4
{[%clk 0:02:28.3]} 13. O-O {[%clk 0:01:56.6]} 13... c6 {[%clk 0:02:25.6]} 14. e4
{[%clk 0:01:50.9]} 14... Kc7 {[%clk 0:02:11.9]} 15. Re1 {[%clk 0:01:45.5]} 15...
Re8 {[%clk 0:02:11]} 16. exf5 {[%clk 0:01:21.5]} 16... exf5 {[%clk 0:02:10.6]}
17. Nxg5 {[%clk 0:00:56.7]} 17... hxg5 {[%clk 0:01:59.5]} 18. Bxg5 {[%clk
0:00:57.6]} 18... Bf6 {[%clk 0:01:45.4]} 19. Bf4+ {[%clk 0:00:57]} 19... Kb6
{[%clk 0:01:45.6]} 20. Na4+ {[%clk 0:00:53.7]} 20... Kb5 {[%clk 0:01:42.9]} 21.
b3 {[%clk 0:00:45.3]} 21... Ka6 {[%clk 0:01:33.4]} 22. Rad1 {[%clk 0:00:41.6]}
22... b5 {[%clk 0:01:31.3]} 23. Nc5+ {[%clk 0:00:40.3]} 23... Kb6 {[%clk
0:01:30.1]} 24. Nd7+ {[%clk 0:00:36.6]} 24... Bxd7 {[%clk 0:01:28.4]} 25. Rxd7
{[%clk 0:00:37.5]} 25... Nd5 {[%clk 0:01:27.4]} 26. Rxe8 {[%clk 0:00:26.8]}
26... Rxe8 {[%clk 0:01:28.3]} 27. Bxd5 {[%clk 0:00:26.6]} 27... cxd5 {[%clk
0:01:21.7]} 28. Rxd5 {[%clk 0:00:27.5]} 28... Re1+ {[%clk 0:01:21.2]} 29. Kg2
{[%clk 0:00:27.4]} 29... b4 {[%clk 0:00:54.4]} 30. h6 {[%clk 0:00:27.2]} 30...
Bc3 {[%clk 0:00:37.3]} 31. Rxf5 {[%clk 0:00:22.9]} 31... Re7 {[%clk 0:00:35.8]}
32. f3 {[%clk 0:00:18.6]} 32... Re2+ {[%clk 0:00:26.5]} 33. Kf1 {[%clk
0:00:17.4]} 33... Rf2+ {[%clk 0:00:16.1]} 34. Kg1 {[%clk 0:00:17.7]} 34... Rxf3
{[%clk 0:00:17]} 35. Kg2 {[%clk 0:00:17]} 35... Rf2+ {[%clk 0:00:17.2]} 36. Kh3
{[%clk 0:00:16.4]} 36... Nxh6 {[%clk 0:00:17.1]} 37. Be3+ {[%clk 0:00:15.5]}
37... Kc6 {[%clk 0:00:14.5]} 38. Rxf2 {[%clk 0:00:15.7]} 38... Ng8 {[%clk
0:00:15.1]} 39. Bxa7 {[%clk 0:00:15]} 39... Kd5 {[%clk 0:00:15.4]} 40. Be3
{[%clk 0:00:14.4]} 40... Ne7 {[%clk 0:00:15.7]} 41. Rf4 {[%clk 0:00:13.6]} 41...
Ng6 {[%clk 0:00:15.3]} 42. Kg4 {[%clk 0:00:11.8]} 42... Ne5+ {[%clk 0:00:13.8]}
43. Kf5 {[%clk 0:00:10.3]} 43... Nf7 {[%clk 0:00:14.2]} 44. g4 {[%clk
0:00:08.3]} 44... Nd6+ {[%clk 0:00:13.8]} 45. Kg6 {[%clk 0:00:09]} 45... Ke6
{[%clk 0:00:14.1]} 46. Rf5 {[%clk 0:00:09.1]} 46... Nc8 {[%clk 0:00:13.7]} 47.
Bc5 {[%clk 0:00:09.4]} 1-0

[Event "Late-Titled-Tuesday-Blitz-December-26-2023"]
[Site "Chess.com"]
[Date "2023.12.26"]
[Round "8"]
[White "sheldons73tshirt"]
[Black "vladoboch"]
[Result "1-0"]
[WhiteElo "2688"]
[BlackElo "2438"]
[TimeControl "180+1"]
[EndTime "15:27:43 PST"]
[Termination "sheldons73tshirt won by resignation"]

1. d4 {[%clk 0:02:57.5]} 1... Nf6 {[%clk 0:02:36.8]} 2. Nf3 {[%clk 0:02:55.8]}
2... g6 {[%clk 0:02:37.1]} 3. c4 {[%clk 0:02:52.2]} 3... Bg7 {[%clk 0:02:36.5]}
4. Nc3 {[%clk 0:02:52.9]} 4... O-O {[%clk 0:02:35.8]} 5. g3 {[%clk 0:02:53.4]}
5... d6 {[%clk 0:02:35.8]} 6. Bg2 {[%clk 0:02:53.5]} 6... Nc6 {[%clk 0:02:36.6]}
7. O-O {[%clk 0:02:53.7]} 7... Bf5 {[%clk 0:02:36.3]} 8. Re1 {[%clk 0:02:51]}
8... e5 {[%clk 0:02:35]} 9. e3 {[%clk 0:02:51]} 9... Qd7 {[%clk 0:02:25.6]} 10.
a3 {[%clk 0:02:49.2]} 10... Rfe8 {[%clk 0:02:16.5]} 11. d5 {[%clk 0:02:34.4]}
11... Ne7 {[%clk 0:02:10.2]} 12. e4 {[%clk 0:02:34.6]} 12... Bh3 {[%clk
0:02:07.9]} 13. Bh1 {[%clk 0:02:35]} 13... Rf8 {[%clk 0:01:53.8]} 14. Ng5 {[%clk
0:02:32.7]} 14... h6 {[%clk 0:01:32.3]} 15. Nxh3 {[%clk 0:02:31]} 15... Qxh3
{[%clk 0:01:33.2]} 16. Bg2 {[%clk 0:02:31.4]} 16... Qd7 {[%clk 0:01:31.9]} 17.
b4 {[%clk 0:02:31.2]} 17... Ne8 {[%clk 0:01:29.8]} 18. c5 {[%clk 0:02:30.3]}
18... f5 {[%clk 0:01:28.9]} 19. f3 {[%clk 0:02:25.5]} 19... Kh7 {[%clk
0:01:28.5]} 20. Qa4 {[%clk 0:02:19.5]} 20... Qd8 {[%clk 0:01:16.5]} 21. Bh3
{[%clk 0:02:17.4]} 21... f4 {[%clk 0:01:15.8]} 22. Kg2 {[%clk 0:02:07.9]} 22...
Ng8 {[%clk 0:00:44.5]} 23. cxd6 {[%clk 0:01:43.1]} 23... Nxd6 {[%clk 0:00:42.8]}
24. Ra2 {[%clk 0:01:31.1]} 24... h5 {[%clk 0:00:42.4]} 25. Qd7 {[%clk 0:01:28]}
25... Qf6 {[%clk 0:00:33.8]} 26. Qe6 {[%clk 0:01:18.4]} 26... Qg5 {[%clk
0:00:33.3]} 27. Qd7 {[%clk 0:00:55.5]} 27... Rf7 {[%clk 0:00:26.8]} 28. Qa4
{[%clk 0:00:56.1]} 28... Raf8 {[%clk 0:00:26.5]} 29. Rf2 {[%clk 0:00:55.6]}
29... Nc4 {[%clk 0:00:19.7]} 30. Be6 {[%clk 0:00:52.7]} 30... Re7 {[%clk
0:00:18.7]} 31. Qb3 {[%clk 0:00:46.1]} 31... Ne3+ {[%clk 0:00:18.4]} 32. Bxe3
{[%clk 0:00:45]} 32... fxe3 {[%clk 0:00:19.3]} 33. Rfe2 {[%clk 0:00:40.9]} 33...
h4 {[%clk 0:00:16.7]} 34. Rxe3 {[%clk 0:00:37.5]} 34... Nf6 {[%clk 0:00:16]} 35.
Ne2 {[%clk 0:00:35.2]} 35... Bh6 {[%clk 0:00:15.5]} 36. Rd3 {[%clk 0:00:33.1]}
36... Nh5 {[%clk 0:00:15.8]} 37. Bg4 {[%clk 0:00:33.1]} 37... Nf6 {[%clk
0:00:12.9]} 38. h3 {[%clk 0:00:30.6]} 38... hxg3 {[%clk 0:00:12.4]} 39. Nxg3
{[%clk 0:00:27]} 39... Nxg4 {[%clk 0:00:12.3]} 40. hxg4 {[%clk 0:00:26.7]} 40...
Ref7 {[%clk 0:00:12]} 41. Rh1 {[%clk 0:00:26]} 41... Kg7 {[%clk 0:00:11.7]} 42.
Qc3 {[%clk 0:00:24.1]} 42... Qf4 {[%clk 0:00:09.4]} 43. Ne2 {[%clk 0:00:20.6]}
43... Qf6 {[%clk 0:00:05.7]} 44. Rh3 {[%clk 0:00:20.8]} 44... Bg5 {[%clk
0:00:05.9]} 45. Ng1 {[%clk 0:00:19.5]} 45... Bf4 {[%clk 0:00:04.1]} 46. Ne2
{[%clk 0:00:19.1]} 46... Qd8 {[%clk 0:00:04]} 47. Nxf4 {[%clk 0:00:18.4]} 47...
Rxf4 {[%clk 0:00:04.2]} 48. Qxe5+ {[%clk 0:00:19]} 48... R4f6 {[%clk 0:00:04.2]}
49. g5 {[%clk 0:00:18.6]} 1-0

[Event "Late-Titled-Tuesday-Blitz-December-26-2023"]
[Site "Chess.com"]
[Date "2023.12.26"]
[Round "8"]
[White "micke12a"]
[Black "GoValya"]
[Result "1-0"]
[WhiteElo "2402"]
[BlackElo "2298"]
[TimeControl "180+1"]
[EndTime "15:27:45 PST"]
[Termination "micke12a won by resignation"]

1. e4 {[%clk 0:02:54.5]} 1... e6 {[%clk 0:02:58.5]} 2. d4 {[%clk 0:02:48.1]}
2... d5 {[%clk 0:02:58.4]} 3. Nd2 {[%clk 0:02:37.3]} 3... c5 {[%clk 0:02:55.1]}
4. Ngf3 {[%clk 0:02:34.6]} 4... cxd4 {[%clk 0:02:51.2]} 5. Nxd4 {[%clk
0:02:32.4]} 5... Nf6 {[%clk 0:02:39.2]} 6. Bd3 {[%clk 0:02:30.5]} 6... Nc6
{[%clk 0:02:32.7]} 7. Nxc6 {[%clk 0:02:25.9]} 7... bxc6 {[%clk 0:02:32.9]} 8.
exd5 {[%clk 0:02:26.7]} 8... exd5 {[%clk 0:02:26.8]} 9. O-O {[%clk 0:02:26.7]}
9... Be7 {[%clk 0:02:26.8]} 10. Re1 {[%clk 0:02:26.4]} 10... O-O {[%clk
0:02:27]} 11. h3 {[%clk 0:02:27.2]} 11... h6 {[%clk 0:02:25.5]} 12. c4 {[%clk
0:02:25.7]} 12... Be6 {[%clk 0:02:11.6]} 13. Qc2 {[%clk 0:02:19.6]} 13... Rc8
{[%clk 0:02:02.8]} 14. Nf3 {[%clk 0:02:04.3]} 14... c5 {[%clk 0:01:47]} 15. cxd5
{[%clk 0:02:01]} 15... Nxd5 {[%clk 0:01:42.9]} 16. a3 {[%clk 0:01:59.4]} 16...
Bf6 {[%clk 0:01:40]} 17. Bc4 {[%clk 0:01:53]} 17... Qb6 {[%clk 0:01:11.9]} 18.
Ne5 {[%clk 0:01:45.6]} 18... Rfd8 {[%clk 0:01:04.5]} 19. b3 {[%clk 0:01:36.1]}
19... Ne7 {[%clk 0:00:48.9]} 20. Bb2 {[%clk 0:01:31.1]} 20... Bxc4 {[%clk
0:00:37.5]} 21. Qxc4 {[%clk 0:01:22.7]} 21... Bxe5 {[%clk 0:00:32.5]} 22. Rxe5
{[%clk 0:01:21.2]} 22... Ng6 {[%clk 0:00:27.3]} 23. Rf5 {[%clk 0:01:16.1]} 23...
Qe6 {[%clk 0:00:20]} 24. Qxe6 {[%clk 0:01:14.7]} 24... fxe6 {[%clk 0:00:20.9]}
25. Rf3 {[%clk 0:01:12.3]} 25... Rd5 {[%clk 0:00:19.9]} 26. Re1 {[%clk
0:01:10.5]} 26... e5 {[%clk 0:00:18.7]} 27. Rfe3 {[%clk 0:01:10.4]} 27... Re8
{[%clk 0:00:18.6]} 28. g3 {[%clk 0:01:06.3]} 28... Kf7 {[%clk 0:00:17]} 29. f4
{[%clk 0:01:05.1]} 29... Red8 {[%clk 0:00:16.5]} 30. fxe5 {[%clk 0:01:04.2]}
30... Rd2 {[%clk 0:00:16.6]} 31. e6+ {[%clk 0:01:04.8]} 31... Ke7 {[%clk
0:00:16.8]} 32. Bxg7 {[%clk 0:01:04.3]} 32... Ra2 {[%clk 0:00:14.5]} 33. R1e2
{[%clk 0:01:00.6]} 33... Rxa3 {[%clk 0:00:14]} 34. Bxh6 {[%clk 0:01:00.1]} 34...
Rd1+ {[%clk 0:00:13.4]} 35. Kf2 {[%clk 0:00:59.8]} 35... Raa1 {[%clk 0:00:13.2]}
36. Bg5+ {[%clk 0:00:59.7]} 36... Ke8 {[%clk 0:00:13.7]} 37. Re1 {[%clk
0:00:55.5]} 37... Ra2+ {[%clk 0:00:12.7]} 38. R3e2 {[%clk 0:00:54.6]} 38...
Rxe2+ {[%clk 0:00:10.8]} 39. Rxe2 {[%clk 0:00:53]} 39... Rd3 {[%clk 0:00:10.7]}
40. Rd2 {[%clk 0:00:49.8]} 40... Rxd2+ {[%clk 0:00:09.3]} 41. Bxd2 {[%clk
0:00:49.3]} 41... Ke7 {[%clk 0:00:10.2]} 42. Kf3 {[%clk 0:00:48.2]} 42... Kxe6
{[%clk 0:00:10.7]} 43. Ke4 {[%clk 0:00:48.7]} 43... Ne7 {[%clk 0:00:10.1]} 44.
g4 {[%clk 0:00:49.2]} 44... Ng6 {[%clk 0:00:10.4]} 45. Bg5 {[%clk 0:00:47.1]}
45... Kd6 {[%clk 0:00:10.5]} 46. h4 {[%clk 0:00:47.1]} 46... Ke6 {[%clk
0:00:10.9]} 47. h5 {[%clk 0:00:47.2]} 47... Nf8 {[%clk 0:00:09.8]} 48. h6 {[%clk
0:00:46.7]} 48... Nh7 {[%clk 0:00:10]} 49. Be3 {[%clk 0:00:46.6]} 49... Kf6
{[%clk 0:00:10.1]} 50. Kf4 {[%clk 0:00:43.4]} 50... Ke6 {[%clk 0:00:08.3]} 51.
Bxc5 {[%clk 0:00:43.4]} 51... Kf6 {[%clk 0:00:08.7]} 52. Bxa7 {[%clk 0:00:43]}
52... Kg6 {[%clk 0:00:09.2]} 53. Bd4 {[%clk 0:00:41.8]} 53... Kxh6 {[%clk
0:00:08.5]} 54. b4 {[%clk 0:00:40.9]} 54... Nf8 {[%clk 0:00:08.7]} 55. Kf5
{[%clk 0:00:41.1]} 55... Nd7 {[%clk 0:00:08.8]} 56. Ke6 {[%clk 0:00:41.6]} 56...
Nf8+ {[%clk 0:00:08.4]} 57. Ke7 {[%clk 0:00:39.9]} 57... Ng6+ {[%clk 0:00:08.3]}
58. Kf7 {[%clk 0:00:40.5]} 58... Kg5 {[%clk 0:00:08.3]} 59. b5 {[%clk
0:00:38.1]} 59... Nf4 {[%clk 0:00:07.8]} 60. Be3 {[%clk 0:00:37.7]} 60... Kxg4
{[%clk 0:00:07.6]} 61. Bxf4 {[%clk 0:00:37.2]} 1-0

[Event "Late-Titled-Tuesday-Blitz-December-26-2023"]
[Site "Chess.com"]
[Date "2023.12.26"]
[Round "8"]
[White "tripledes"]
[Black "DinaBelenkaya"]
[Result "1-0"]
[WhiteElo "2231"]
[BlackElo "2373"]
[TimeControl "180+1"]
[EndTime "15:27:48 PST"]
[Termination "tripledes won on time"]

1. e4 {[%clk 0:03:00.9]} 1... c6 {[%clk 0:02:56]} 2. d4 {[%clk 0:03:00.4]} 2...
d5 {[%clk 0:02:56.6]} 3. Nd2 {[%clk 0:03:00.9]} 3... dxe4 {[%clk 0:02:56.7]} 4.
Nxe4 {[%clk 0:03:01.8]} 4... Nf6 {[%clk 0:02:56.6]} 5. Nxf6+ {[%clk 0:03:01.9]}
5... gxf6 {[%clk 0:02:57.5]} 6. Nf3 {[%clk 0:02:59.7]} 6... Bg4 {[%clk
0:02:56.8]} 7. Be2 {[%clk 0:02:59.9]} 7... Rg8 {[%clk 0:02:56.6]} 8. c3 {[%clk
0:02:54.9]} 8... Nd7 {[%clk 0:02:40.5]} 9. h3 {[%clk 0:02:54]} 9... Bh5 {[%clk
0:02:40.5]} 10. Nh4 {[%clk 0:02:53.8]} 10... Bxe2 {[%clk 0:02:40.2]} 11. Qxe2
{[%clk 0:02:54.7]} 11... Nb6 {[%clk 0:02:40.2]} 12. Bd2 {[%clk 0:02:50.1]} 12...
Qd5 {[%clk 0:02:39.5]} 13. b3 {[%clk 0:02:41.3]} 13... O-O-O {[%clk 0:02:38.8]}
14. O-O-O {[%clk 0:02:34.8]} 14... e5 {[%clk 0:02:35.1]} 15. Be3 {[%clk
0:02:29.3]} 15... Qa5 {[%clk 0:02:33.6]} 16. Qc2 {[%clk 0:02:09.9]} 16... Kb8
{[%clk 0:02:25.4]} 17. Kb1 {[%clk 0:02:05.9]} 17... Nd5 {[%clk 0:02:10.9]} 18.
Bd2 {[%clk 0:01:50.2]} 18... exd4 {[%clk 0:02:04.7]} 19. cxd4 {[%clk 0:01:46]}
19... Bb4 {[%clk 0:02:04.6]} 20. Rhe1 {[%clk 0:01:37.6]} 20... Bxd2 {[%clk
0:01:59.6]} 21. Rxd2 {[%clk 0:01:35.2]} 21... Rge8 {[%clk 0:01:47.6]} 22. Rc1
{[%clk 0:01:21.6]} 22... Nb4 {[%clk 0:01:16.2]} 23. Qc3 {[%clk 0:01:07.3]} 23...
Rd5 {[%clk 0:01:03]} 24. g4 {[%clk 0:00:54.1]} 24... Qa3 {[%clk 0:00:54.9]} 25.
Nf5 {[%clk 0:00:40.2]} 25... h5 {[%clk 0:00:40.5]} 26. Ne3 {[%clk 0:00:37.1]}
26... Rb5 {[%clk 0:00:36.4]} 27. Nc4 {[%clk 0:00:35.2]} 27... Qa6 {[%clk
0:00:35.5]} 28. Nd6 {[%clk 0:00:35.5]} 28... Rd8 {[%clk 0:00:29.9]} 29. Nxb5
{[%clk 0:00:35.1]} 29... Qxb5 {[%clk 0:00:30.8]} 30. Qc5 {[%clk 0:00:31.8]}
30... Qxc5 {[%clk 0:00:22.3]} 31. Rxc5 {[%clk 0:00:32.7]} 31... hxg4 {[%clk
0:00:22.8]} 32. hxg4 {[%clk 0:00:32.7]} 32... Nd5 {[%clk 0:00:23.4]} 33. Rc1
{[%clk 0:00:29.5]} 33... Rg8 {[%clk 0:00:22.4]} 34. f3 {[%clk 0:00:29.7]} 34...
Rh8 {[%clk 0:00:22.5]} 35. Re1 {[%clk 0:00:29.6]} 35... Kc7 {[%clk 0:00:22.5]}
36. Kc2 {[%clk 0:00:28.8]} 36... Rh3 {[%clk 0:00:20]} 37. Kd3 {[%clk 0:00:28.2]}
37... Rxf3+ {[%clk 0:00:19.5]} 38. Ke2 {[%clk 0:00:26.3]} 38... Rf4 {[%clk
0:00:19.5]} 39. Rg1 {[%clk 0:00:26.4]} 39... Re4+ {[%clk 0:00:18.6]} 40. Kf3
{[%clk 0:00:26.2]} 40... Re3+ {[%clk 0:00:19.1]} 41. Kf2 {[%clk 0:00:26.7]}
41... Rc3 {[%clk 0:00:16.8]} 42. Rg3 {[%clk 0:00:25.3]} 42... Rc1 {[%clk
0:00:14.8]} 43. Kf3 {[%clk 0:00:24.2]} 43... Kd6 {[%clk 0:00:12.8]} 44. Ke4
{[%clk 0:00:22.2]} 44... Re1+ {[%clk 0:00:11.4]} 45. Kd3 {[%clk 0:00:21.3]}
45... Nf4+ {[%clk 0:00:09.3]} 46. Kc2 {[%clk 0:00:20.6]} 46... Rh1 {[%clk
0:00:09.2]} 47. Rf2 {[%clk 0:00:18.6]} 47... Nd5 {[%clk 0:00:09.1]} 48. g5
{[%clk 0:00:17.3]} 48... fxg5 {[%clk 0:00:05.8]} 49. Rxf7 {[%clk 0:00:14.9]}
49... Rh2+ {[%clk 0:00:05.8]} 50. Kc1 {[%clk 0:00:12.4]} 50... b5 {[%clk
0:00:01.4]} 51. Rxg5 {[%clk 0:00:12.1]} 51... Rxa2 {[%clk 0:00:01.6]} 52. Rg6+
{[%clk 0:00:12.1]} 1-0

[Event "Late-Titled-Tuesday-Blitz-December-26-2023"]
[Site "Chess.com"]
[Date "2023.12.26"]
[Round "8"]
[White "Fh2411"]
[Black "sofaceindisguise"]
[Result "0-1"]
[WhiteElo "2542"]
[BlackElo "2737"]
[TimeControl "180+1"]
[EndTime "15:27:49 PST"]
[Termination "sofaceindisguise won on time"]

1. d4 {[%clk 0:03:00.9]} 1... Nf6 {[%clk 0:02:56.6]} 2. Nf3 {[%clk 0:03:01]}
2... d5 {[%clk 0:02:56.5]} 3. Bf4 {[%clk 0:03:01.4]} 3... e6 {[%clk 0:02:56.5]}
4. e3 {[%clk 0:03:02]} 4... Bd6 {[%clk 0:02:49.3]} 5. Bg3 {[%clk 0:03:01.5]}
5... O-O {[%clk 0:02:49.3]} 6. Nbd2 {[%clk 0:02:58.3]} 6... b6 {[%clk
0:02:48.2]} 7. Bd3 {[%clk 0:02:50.8]} 7... Bb7 {[%clk 0:02:48.2]} 8. Ne5 {[%clk
0:02:46.2]} 8... Ne4 {[%clk 0:02:45.7]} 9. f3 {[%clk 0:02:46.1]} 9... Nxd2
{[%clk 0:02:35]} 10. Qxd2 {[%clk 0:02:44]} 10... c5 {[%clk 0:02:33.9]} 11. c3
{[%clk 0:02:40.5]} 11... Qc7 {[%clk 0:02:32.1]} 12. f4 {[%clk 0:02:32.6]} 12...
Nd7 {[%clk 0:02:30.9]} 13. Qc2 {[%clk 0:01:58.7]} 13... Nf6 {[%clk 0:02:29.9]}
14. O-O {[%clk 0:01:50.7]} 14... Ne4 {[%clk 0:02:27.9]} 15. Bh4 {[%clk
0:01:49.6]} 15... f6 {[%clk 0:02:27.2]} 16. Nf3 {[%clk 0:01:49.3]} 16... c4
{[%clk 0:02:22.8]} 17. Bxe4 {[%clk 0:01:29.5]} 17... dxe4 {[%clk 0:02:23.7]} 18.
Nd2 {[%clk 0:01:29.4]} 18... b5 {[%clk 0:02:20.2]} 19. Nxe4 {[%clk 0:01:19.9]}
19... f5 {[%clk 0:02:04.4]} 20. Nd2 {[%clk 0:01:06.5]} 20... Bd5 {[%clk
0:02:00.6]} 21. Rae1 {[%clk 0:00:56.6]} 21... a5 {[%clk 0:01:59.3]} 22. Qd1
{[%clk 0:00:47]} 22... b4 {[%clk 0:01:59.2]} 23. g4 {[%clk 0:00:33.1]} 23...
bxc3 {[%clk 0:01:54.8]} 24. bxc3 {[%clk 0:00:33.9]} 24... Rab8 {[%clk
0:01:55.5]} 25. Rf2 {[%clk 0:00:30.1]} 25... Rb2 {[%clk 0:01:54.8]} 26. Nf1
{[%clk 0:00:29.5]} 26... Rfb8 {[%clk 0:01:52.5]} 27. gxf5 {[%clk 0:00:21.5]}
27... exf5 {[%clk 0:01:51.7]} 28. Qh5 {[%clk 0:00:22.1]} 28... g6 {[%clk
0:01:51.1]} 29. Qg5 {[%clk 0:00:20.6]} 29... Rxf2 {[%clk 0:01:41.4]} 30. Kxf2
{[%clk 0:00:20.8]} 30... Re8 {[%clk 0:01:34.3]} 31. Ng3 {[%clk 0:00:13.9]} 31...
Be7 {[%clk 0:01:32.8]} 32. Qh6 {[%clk 0:00:14.5]} 32... Bf8 {[%clk 0:01:32.9]}
33. Qg5 {[%clk 0:00:15]} 33... Bg7 {[%clk 0:01:26.3]} 34. Nf1 {[%clk 0:00:10.9]}
34... Qb7 {[%clk 0:01:25.8]} 35. Re2 {[%clk 0:00:10.4]} 35... Qb1 {[%clk
0:01:24.2]} 36. Qg3 {[%clk 0:00:10.4]} 36... a4 {[%clk 0:01:23.9]} 37. Nd2
{[%clk 0:00:04.7]} 37... Qd3 {[%clk 0:01:23.4]} 38. Nf3 {[%clk 0:00:04.5]} 38...
Qxc3 {[%clk 0:01:21.8]} 39. Ne5 {[%clk 0:00:04.5]} 39... Qa1 {[%clk 0:01:18.3]}
40. Qg1 {[%clk 0:00:04.6]} 40... Qxg1+ {[%clk 0:01:16.2]} 41. Kxg1 {[%clk
0:00:05.5]} 41... Rc8 {[%clk 0:01:14.1]} 42. Be1 {[%clk 0:00:06]} 42... Be4
{[%clk 0:01:13.1]} 43. Bc3 {[%clk 0:00:05.7]} 43... a3 {[%clk 0:01:11.2]} 44.
Kf2 {[%clk 0:00:04.2]} 44... Bf8 {[%clk 0:01:11.4]} 45. Nd7 {[%clk 0:00:03.8]}
45... Be7 {[%clk 0:01:09.4]} 46. Nb6 {[%clk 0:00:03.6]} 46... Rc6 {[%clk
0:01:09]} 47. Nd7 {[%clk 0:00:03.7]} 47... Bd3 {[%clk 0:01:06.7]} 48. Rd2 {[%clk
0:00:03.9]} 48... Rc7 {[%clk 0:01:05.4]} 49. Ne5 {[%clk 0:00:04.4]} 49... Bh4+
{[%clk 0:00:59.2]} 50. Kg1 {[%clk 0:00:03.1]} 50... Be4 {[%clk 0:00:58.5]} 51.
Kf1 {[%clk 0:00:02.3]} 51... Rb7 {[%clk 0:00:58.7]} 52. Rd1 {[%clk 0:00:02.4]}
52... Bd5 {[%clk 0:00:58.4]} 53. Rc1 {[%clk 0:00:01.7]} 53... g5 {[%clk
0:00:57.3]} 54. fxg5 {[%clk 0:00:01.2]} 54... Bxg5 {[%clk 0:00:58.2]} 55. Ke2
{[%clk 0:00:01.9]} 55... Kf8 {[%clk 0:00:57.1]} 56. Rg1 {[%clk 0:00:02.1]} 56...
h6 {[%clk 0:00:57.4]} 57. Nf3 {[%clk 0:00:01.2]} 57... Bf6 {[%clk 0:00:53]} 0-1